bitfinex-derivatives/quotes_BTCF0:USTF0_20260314
["timestamp","ask_amount","ask_price","bid_price","bid_amount"]
[1773521289183,0.00156,70893.0,70882.0,0.02311501]
[1773521289385,0.04231,70894.0,70882.0,0.02311501]
[1773521289572,0.00156,70893.0,70882.0,0.02311501]
[1773521289981,0.00156,70892.0,70883.0,0.02310877]
[1773521290188,0.00156,70894.0,70884.0,0.02310877]
[1773521291075,0.00156,70894.0,70877.0,0.02304095]
[1773521291280,0.07354746,70890.0,70873.0,0.02304095]
[1773521291582,0.042315,70886.0,70873.0,0.02304095]
[1773521291783,0.00156,70885.0,70873.0,0.06536295]
[1773521291980,0.00156,70885.0,70874.0,0.02302446]
[1773521292185,0.042316,70884.0,70874.0,0.02302446]
[1773521294085,0.04232,70877.0,70863.0,0.02354731]
[1773521294281,0.04232,70877.0,70865.0,0.02354731]
[1773521294282,0.00156,70876.0,70865.0,0.02354731]
[1773521295087,0.043881,70876.0,70865.0,0.02354731]
[1773521295887,0.042322,70875.0,70865.0,0.02354731]
[1773521297184,0.042322,70875.0,70866.0,0.29429889]
[1773521297390,0.042322,70875.0,70867.0,0.02352748]
[1773521306693,0.00156,70876.0,70867.0,0.02352748]
[1773521308994,0.01123,70887.0,70867.0,0.02352748]
[1773521309202,0.00156,70886.0,70869.0,0.02347489]
[1773521309400,0.00156,70885.0,70868.0,0.02347086]
[1773521309592,0.00156,70885.0,70873.0,0.02347086]
[1773521309792,0.01123,70887.0,70873.0,0.02347086]
[1773521309993,0.00156,70886.0,70873.0,0.02347086]
[1773521310403,0.042316,70884.0,70873.0,0.02347086]
[1773521311604,0.042317,70883.0,70873.0,0.02347086]
[1773521317605,0.042317,70882.0,70871.0,0.02324928]
[1773521325415,0.00156,70881.0,70871.0,0.02324928]
[1773521327613,0.042317,70882.0,70871.0,0.02324928]
[1773521327815,0.00156,70881.0,70871.0,0.02324928]
[1773521329108,0.042317,70882.0,70871.0,0.02324928]
[1773521329309,0.00156,70880.0,70871.0,0.02324928]
[1773521329818,0.00156,70880.0,70872.0,0.27836968]
[1773521330017,0.00156,70880.0,70870.0,0.042324]
[1773521330018,0.00156,70880.0,70873.0,0.02309007]
[1773521333222,0.042317,70882.0,70873.0,0.02309007]
[1773521333516,0.00156,70881.0,70873.0,0.02309007]
[1773521333710,0.07353834,70883.0,70861.0,0.042329]
[1773521333909,0.042321,70876.0,70863.0,0.01883207]
[1773521334210,0.042321,70876.0,70864.0,0.26840502]
[1773521334416,0.042321,70876.0,70865.0,0.26840502]
[1773521334722,0.00156,70875.0,70863.0,0.01883207]
[1773521335315,0.042323,70873.0,70863.0,0.01883207]
[1773521336923,0.043881,70875.0,70863.0,0.01883207]
[1773521341040,0.00156,70875.0,70863.0,0.01883207]
[1773521341233,0.042323,70873.0,70863.0,0.01883207]
[1773521343038,0.043881,70875.0,70863.0,0.01883207]
[1773521343236,0.00156,70875.0,70863.0,0.01883207]
[1773521344033,0.00156,70875.0,70865.0,0.01883207]
[1773521346139,0.00156,70875.0,70862.0,0.042329]
[1773521346140,0.043881,70875.0,70862.0,0.042329]
[1773521346345,0.00156,70875.0,70865.0,0.01883207]
[1773521346534,0.043882,70875.0,70865.0,0.01883207]
[1773521354249,0.01906028,70873.0,70850.0,0.01883207]
[1773521354435,0.01906028,70869.0,70845.0,0.00156]
[1773521354640,0.01906028,70867.0,70844.0,0.06273107]
[1773521355143,0.01906028,70867.0,70849.0,2.6e-07]
[1773521355355,0.042333,70855.0,70849.0,2.6e-07]
[1773521355554,0.00156,70856.0,70844.0,0.01883207]
[1773521356351,0.043893,70856.0,70844.0,0.01883207]
[1773521356554,0.00014426,70855.0,70844.0,0.01883207]
[1773521360959,0.042334,70854.0,70844.0,0.01883207]
[1773521361652,0.00014426,70855.0,70844.0,0.01883207]
[1773521366650,0.00014426,70856.0,70844.0,0.01883207]
[1773521366849,0.00156,70855.0,70844.0,0.01883207]
[1773521367445,0.042331,70858.0,70844.0,0.01883207]
[1773521367641,0.042331,70858.0,70840.0,0.07509834]
[1773521367642,0.00156,70857.0,70845.0,0.042339]
[1773521367946,0.00156,70857.0,70846.0,0.01915203]
[1773521374060,0.043892,70857.0,70846.0,0.01915203]
[1773521377859,0.039452,70857.0,70846.0,0.01915203]
[1773521379656,0.01123,70867.0,70847.0,0.01915203]
[1773521379859,0.00156,70866.0,70850.0,0.01915203]
[1773521380063,0.00156,70866.0,70841.0,0.01915203]
[1773521380064,0.04233,70860.0,70841.0,0.01915203]
[1773521380262,0.00156,70859.0,70841.0,0.01915203]
[1773521380963,0.00156,70859.0,70847.0,0.042338]
[1773521381159,0.00156,70859.0,70848.0,0.01915203]
[1773521382265,0.00156,70859.0,70849.0,0.01915203]
[1773521383368,0.00156,70859.0,70850.0,0.01915203]
[1773521383662,0.042329,70862.0,70850.0,0.01915203]
[1773521383853,0.00156,70861.0,70850.0,0.01915203]
[1773521384057,0.042329,70862.0,70850.0,0.01915203]
[1773521384255,0.00156,70860.0,70850.0,0.01915203]
[1773521386756,0.04233,70861.0,70850.0,0.01915203]
[1773521386956,0.00156,70860.0,70850.0,0.01915203]
[1773521387366,0.00723,70867.0,70856.0,0.01915203]
[1773521388066,0.00879,70867.0,70856.0,0.01915203]
[1773521388264,0.00479,70867.0,70856.0,0.01915203]
[1773521388861,0.00156,70867.0,70856.0,0.01915203]
[1773521389169,0.03872459,70870.0,70854.0,0.01768128]
[1773521389365,0.01203066,70870.0,70862.0,0.01768128]
[1773521389573,0.00803066,70870.0,70862.0,0.01768128]
[1773521390165,0.043881,70875.0,70862.0,0.01768128]
[1773521390369,0.00156,70874.0,70862.0,0.01768128]
[1773521390962,0.00156,70874.0,70862.0,0.042329]
[1773521391271,0.043882,70874.0,70863.0,0.01768128]
[1773521391774,0.01123,70879.0,70863.0,0.01768128]
[1773521391975,0.042321,70876.0,70864.0,0.01825387]
[1773521393572,0.04232,70878.0,70865.0,0.01825387]
[1773521393775,0.042319,70879.0,70861.0,0.01825387]
[1773521393977,0.04388,70878.0,70864.0,0.042327]
[1773521394176,0.04388,70878.0,70865.0,0.01825387]
[1773521394374,0.03747173,70889.0,70868.0,0.042325]
[1773521394375,0.042317,70882.0,70868.0,0.042325]
[1773521394672,0.00156,70881.0,70871.0,0.01825387]
[1773521394868,0.00156,70880.0,70871.0,0.01825387]
[1773521395070,0.01123,70887.0,70871.0,0.01825387]
[1773521395271,0.042318,70881.0,70871.0,0.01825387]
[1773521395675,0.00156,70880.0,70871.0,0.01825387]
[1773521396179,0.043879,70880.0,70871.0,0.01825387]
[1773521399575,0.042319,70879.0,70871.0,0.01825387]
[1773521404880,0.00156,70880.0,70860.0,0.01825387]
[1773521405180,0.042321,70877.0,70865.0,0.042327]
[1773521405482,0.042321,70877.0,70866.0,0.00156]
[1773521405980,0.042319,70879.0,70866.0,0.01981387]
[1773521406181,0.042319,70879.0,70866.0,0.06213987]
[1773521410083,0.04232,70878.0,70866.0,0.06213987]
[1773521416091,0.04232,70878.0,70867.0,0.01825387]
[1773521424705,0.04232,70878.0,70866.0,0.043886]
[1773521425800,0.04232,70877.0,70866.0,0.00156]
[1773521436912,0.00156,70881.0,70866.0,0.00156]
[1773521438205,0.00156,70881.0,70852.0,0.042335]
[1773521438206,0.01670537,70869.0,70852.0,0.042335]
[1773521438513,0.01670537,70869.0,70853.0,0.00156]
[1773521440019,0.042327,70866.0,70853.0,0.00156]
[1773521440318,0.042327,70865.0,70853.0,0.00156]
[1773521440511,0.01670537,70869.0,70846.0,0.01696428]
[1773521440708,0.01670537,70867.0,70847.0,0.00156]
[1773521441015,0.01670537,70867.0,70848.0,0.00156]
[1773521441416,0.01670537,70867.0,70846.0,0.01696428]
[1773521441615,0.01670537,70867.0,70847.0,0.00156]
[1773521441919,0.01670537,70867.0,70846.0,0.01696428]
[1773521442122,0.042329,70862.0,70849.0,0.042336]
[1773521442329,0.042329,70862.0,70850.0,0.00156]
[1773521442718,0.042329,70862.0,70851.0,0.00156]
[1773521443427,0.01670537,70867.0,70846.0,0.01696428]
[1773521443726,0.01670537,70867.0,70847.0,0.00156]
[1773521444421,0.01670537,70866.0,70847.0,0.00156]
[1773521444627,0.04233,70860.0,70847.0,0.043898]
[1773521445428,0.042331,70859.0,70847.0,0.043898]
[1773521447325,0.01670537,70863.0,70841.0,0.01852428]
[1773521447326,0.07353742,70860.0,70841.0,0.01852428]
[1773521447522,0.042332,70858.0,70843.0,0.04234]
[1773521448030,0.042332,70857.0,70843.0,0.04234]
[1773521448423,0.042332,70857.0,70844.0,0.042339]
[1773521448721,0.042332,70857.0,70847.0,0.001]
[1773521449127,0.042332,70857.0,70844.0,0.042339]
[1773521450627,0.042332,70857.0,70844.0,0.03338813]
[1773521450827,0.042337,70849.0,70834.0,0.00156]
[1773521451920,0.042337,70849.0,70836.0,0.042344]
[1773521453534,0.042338,70848.0,70835.0,0.042345]
[1773521457434,0.042338,70847.0,70835.0,0.042345]
[1773521459036,0.042338,70847.0,70836.0,0.00156]
[1773521459224,0.042338,70847.0,70833.0,0.042346]
[1773521459428,0.042338,70847.0,70834.0,0.00156]
[1773521459735,0.042338,70847.0,70833.0,0.05906611]
[1773521459935,0.042338,70847.0,70835.0,0.00156]
[1773521460327,0.042339,70846.0,70836.0,0.00156]
[1773521460732,0.01628039,70849.0,70832.0,0.053587]
[1773521460927,0.04234,70844.0,70832.0,0.055147]
[1773521461324,0.04234,70844.0,70832.0,0.053587]
[1773521461530,0.04234,70844.0,70833.0,0.00156]
[1773521462334,0.04234,70844.0,70832.0,0.054587]
[1773521462532,0.04234,70844.0,70833.0,0.00156]
[1773521462840,0.04234,70844.0,70832.0,0.054587]
[1773521463030,0.04234,70844.0,70832.0,0.056147]
[1773521463536,0.04234,70844.0,70832.0,0.055147]
[1773521463740,0.04234,70844.0,70833.0,0.001]
[1773521464129,0.04234,70844.0,70832.0,0.055147]
[1773521464333,0.04234,70844.0,70832.0,0.056147]
[1773521464832,0.04234,70844.0,70833.0,0.001]
[1773521465424,0.04234,70844.0,70832.0,0.054587]
[1773521465629,0.04234,70844.0,70832.0,0.056147]
[1773521466935,0.04234,70844.0,70833.0,0.001]
[1773521467641,0.04234,70844.0,70832.0,0.056147]
[1773521468141,0.04234,70844.0,70833.0,0.001]
[1773521468340,0.04234,70844.0,70820.0,0.07353742]
[1773521468341,0.01628039,70842.0,70826.0,0.00156]
[1773521468542,0.01784039,70842.0,70826.0,0.00156]
[1773521468943,0.042345,70836.0,70826.0,0.00156]
[1773521469144,0.042345,70836.0,70826.0,0.0128]
[1773521470037,0.042345,70836.0,70826.0,0.01124]
[1773521470238,0.042345,70836.0,70827.0,0.00156]
[1773521470438,0.042343,70838.0,70826.0,0.01124]
[1773521473246,0.02752039,70851.0,70830.0,0.05906811]
[1773521473445,0.00156,70850.0,70831.0,0.01672011]
[1773521474453,0.00156,70849.0,70831.0,0.01672011]
[1773521476051,0.04234,70844.0,70831.0,0.01672011]
[1773521479450,0.0439,70844.0,70831.0,0.01672011]
[1773521479650,0.04234,70844.0,70831.0,0.05906711]
[1773521479851,0.00156,70846.0,70835.0,0.01672011]
[1773521480054,0.00156,70847.0,70836.0,0.07353742]
[1773521480354,0.01124,70851.0,70835.0,0.01672011]
[1773521480556,0.01124,70851.0,70831.0,0.00156]
[1773521480557,0.055136,70851.0,70831.0,0.00156]
[1773521480771,0.042336,70850.0,70837.0,0.05906411]
[1773521481056,0.01124,70851.0,70838.0,0.042343]
[1773521481260,0.01124,70851.0,70841.0,0.01672011]
[1773521481855,0.042335,70852.0,70841.0,0.01672011]
[1773521482064,0.2009017,70851.0,70840.0,0.07353742]
[1773521482267,0.2009017,70850.0,70839.0,0.042343]
[1773521482468,0.2009017,70849.0,70839.0,0.042343]
[1773521482761,0.2009017,70848.0,70840.0,0.07353742]
[1773521482956,0.042335,70852.0,70840.0,0.07353742]
[1773521483157,0.2009034,70851.0,70840.0,0.07353742]
[1773521483377,0.042335,70852.0,70840.0,0.07353742]
[1773521483378,0.2009034,70850.0,70840.0,0.07353742]
[1773521483555,0.2009034,70849.0,70840.0,0.07353742]
[1773521483853,0.042335,70852.0,70840.0,0.07353742]
[1773521484055,0.20089465,70851.0,70840.0,0.07353742]
[1773521484252,0.20089465,70850.0,70840.0,0.07353742]
[1773521484463,0.20089465,70849.0,70840.0,0.08977364]
[1773521484651,0.042335,70852.0,70840.0,0.13211564]
[1773521484852,0.20088568,70851.0,70840.0,0.13211564]
[1773521485051,0.20088568,70850.0,70840.0,0.13211564]
[1773521485253,0.20088568,70849.0,70837.0,0.00156]
[1773521485459,0.00156,70853.0,70837.0,0.00156]
[1773521485460,0.20087942,70848.0,70837.0,0.00156]
[1773521485665,0.20089032,70847.0,70838.0,0.042343]
[1773521485866,0.00156,70853.0,70838.0,0.042343]
[1773521486059,0.20089041,70852.0,70838.0,0.042343]
[1773521486269,0.01640464,70855.0,70838.0,0.042343]
[1773521486270,0.20245041,70851.0,70838.0,0.042343]
[1773521486454,0.20089041,70850.0,70838.0,0.042343]
[1773521486656,0.20089041,70849.0,70838.0,0.042343]
[1773521486862,0.20089041,70848.0,70838.0,0.042343]
[1773521487161,0.20089041,70847.0,70838.0,0.042343]
[1773521487469,0.043896,70851.0,70838.0,0.042343]
[1773521487672,0.20088993,70850.0,70838.0,0.042343]
[1773521487973,0.20088993,70849.0,70838.0,0.042343]
[1773521488159,0.20088993,70848.0,70838.0,0.042343]
[1773521488364,0.20088993,70847.0,70838.0,0.042343]
[1773521488566,0.043896,70851.0,70838.0,0.042343]
[1773521488766,0.20088794,70850.0,70838.0,0.042343]
[1773521489065,0.20088794,70849.0,70838.0,0.042343]
[1773521489258,0.20088794,70848.0,70838.0,0.042343]
[1773521489458,0.20088794,70847.0,70838.0,0.042343]
[1773521489658,0.043896,70851.0,70838.0,0.042343]
[1773521489978,0.20088583,70850.0,70838.0,0.042343]
[1773521490270,0.20088583,70849.0,70838.0,0.042343]
[1773521490461,0.20088583,70848.0,70838.0,0.042343]
[1773521490663,0.20088583,70847.0,70838.0,0.042343]
[1773521490880,0.043896,70851.0,70838.0,0.042343]
[1773521491072,0.20087811,70850.0,70838.0,0.042343]
[1773521491368,0.20087811,70849.0,70838.0,0.042343]
[1773521491575,0.20087811,70848.0,70838.0,0.042343]
[1773521491755,0.043896,70851.0,70838.0,0.042343]
[1773521491960,0.20087056,70850.0,70838.0,0.042343]
[1773521492269,0.20087056,70849.0,70838.0,0.042343]
[1773521492472,0.20087056,70848.0,70838.0,0.042343]
[1773521492675,0.043896,70851.0,70838.0,0.042343]
[1773521492858,0.20086363,70850.0,70838.0,0.042343]
[1773521493155,0.20086363,70849.0,70838.0,0.042343]
[1773521493355,0.20086363,70848.0,70838.0,0.042343]
[1773521493558,0.043896,70851.0,70838.0,0.042343]
[1773521493759,0.20085743,70850.0,70838.0,0.042343]
[1773521493959,0.20085743,70849.0,70838.0,0.042343]
[1773521494162,0.20085743,70848.0,70838.0,0.042343]
[1773521494372,0.043896,70851.0,70838.0,0.042343]
[1773521494673,0.20085192,70850.0,70838.0,0.042343]
[1773521494871,0.20085192,70849.0,70838.0,0.042343]
[1773521495078,0.20085192,70848.0,70838.0,0.042343]
[1773521495379,0.043896,70851.0,70838.0,0.042343]
[1773521495557,0.20084713,70850.0,70838.0,0.042343]
[1773521495760,0.20084713,70849.0,70838.0,0.042343]
[1773521496061,0.20084713,70848.0,70838.0,0.042343]
[1773521496260,0.043896,70851.0,70838.0,0.042343]
[1773521496461,0.20084293,70850.0,70838.0,0.042343]
[1773521496774,0.20084293,70849.0,70838.0,0.042343]
[1773521497072,0.20084293,70848.0,70838.0,0.042343]
[1773521497372,0.043896,70851.0,70838.0,0.042343]
[1773521497676,0.20083936,70850.0,70838.0,0.042343]
[1773521497875,0.043896,70851.0,70838.0,0.042343]
[1773521497876,0.20083936,70849.0,70838.0,0.042343]
[1773521498173,0.20083936,70848.0,70838.0,0.042343]
[1773521498386,0.042336,70851.0,70838.0,0.042343]
[1773521498566,0.20083648,70850.0,70838.0,0.042343]
[1773521498769,0.20083648,70849.0,70838.0,0.042343]
[1773521499075,0.20083648,70848.0,70838.0,0.042343]
[1773521499371,0.042336,70851.0,70838.0,0.042343]
[1773521499571,0.20085673,70850.0,70838.0,0.042343]
[1773521499772,0.20085673,70849.0,70838.0,0.042343]
[1773521500073,0.20085673,70848.0,70838.0,0.042343]
[1773521500275,0.042336,70851.0,70838.0,0.042343]
[1773521500478,0.20087627,70850.0,70838.0,0.042343]
[1773521500773,0.20087627,70849.0,70838.0,0.042343]
[1773521500974,0.20087627,70848.0,70838.0,0.042343]
[1773521501178,0.20089293,70847.0,70838.0,0.042343]
[1773521501368,0.042336,70851.0,70838.0,0.042343]
[1773521501569,0.20089293,70850.0,70838.0,0.042343]
[1773521501768,0.20089293,70849.0,70838.0,0.042343]
[1773521501968,0.20089293,70848.0,70838.0,0.042343]
[1773521502161,0.20089293,70847.0,70838.0,0.042343]
[1773521502366,0.042336,70851.0,70838.0,0.042343]
[1773521502666,0.20091287,70850.0,70838.0,0.042343]
[1773521502979,0.20091287,70849.0,70838.0,0.042343]
[1773521503181,0.20091287,70848.0,70838.0,0.042343]
[1773521503389,0.20091287,70847.0,70838.0,0.042343]
[1773521503573,0.042336,70851.0,70838.0,0.042343]
[1773521503768,0.20093686,70850.0,70838.0,0.042343]
[1773521503970,0.20093686,70849.0,70838.0,0.042343]
[1773521504166,0.20093686,70848.0,70838.0,0.042343]
[1773521504480,0.20093686,70847.0,70838.0,0.042343]
[1773521504668,0.042336,70851.0,70838.0,0.042343]
[1773521504981,0.20095432,70850.0,70838.0,0.042343]
[1773521505178,0.20095432,70849.0,70838.0,0.042343]
[1773521505378,0.20095432,70848.0,70838.0,0.042343]
[1773521505581,0.20095432,70847.0,70838.0,0.042343]
[1773521505777,0.042336,70851.0,70838.0,0.042343]
[1773521506082,0.20097396,70850.0,70838.0,0.042343]
[1773521506290,0.20097396,70849.0,70838.0,0.042343]
[1773521506474,0.20097396,70848.0,70838.0,0.042343]
[1773521506671,0.20097396,70847.0,70838.0,0.042343]
[1773521506872,0.20097396,70846.0,70838.0,0.042343]
[1773521507074,0.042336,70851.0,70838.0,0.042343]
[1773521507382,0.20103017,70850.0,70838.0,0.042343]
[1773521507572,0.20103017,70849.0,70838.0,0.042343]
[1773521507776,0.20103017,70848.0,70838.0,0.042343]
[1773521507975,0.20103017,70847.0,70838.0,0.042343]
[1773521508282,0.042336,70851.0,70838.0,0.042343]
[1773521508283,0.20103017,70846.0,70838.0,0.042343]
[1773521508473,0.042336,70851.0,70838.0,0.042343]
[1773521508672,0.2010663,70850.0,70838.0,0.042343]
[1773521508884,0.2010663,70849.0,70838.0,0.042343]
[1773521509185,0.2010663,70848.0,70838.0,0.042343]
[1773521509385,0.2010663,70847.0,70838.0,0.042343]
[1773521509679,0.2010663,70846.0,70838.0,0.042343]
[1773521509885,0.2010663,70845.0,70838.0,0.042343]
[1773521510078,0.042336,70850.0,70838.0,0.042343]
[1773521510280,0.20117005,70849.0,70838.0,0.042343]
[1773521510476,0.20117005,70848.0,70838.0,0.042343]
[1773521510676,0.20117005,70847.0,70838.0,0.042343]
[1773521510882,0.20117005,70846.0,70838.0,0.042343]
[1773521511082,0.20117005,70845.0,70838.0,0.042343]
[1773521511277,0.042336,70850.0,70838.0,0.042343]
[1773521511476,0.20118775,70849.0,70838.0,0.042343]
[1773521511680,0.20118775,70848.0,70838.0,0.042343]
[1773521511978,0.20118775,70847.0,70838.0,0.042343]
[1773521512176,0.20118775,70846.0,70838.0,0.042343]
[1773521512379,0.20118775,70845.0,70838.0,0.042343]
[1773521512575,0.042336,70850.0,70838.0,0.042343]
[1773521512777,0.20143793,70849.0,70838.0,0.042343]
[1773521513075,0.20143793,70848.0,70838.0,0.042343]
[1773521513276,0.20143793,70847.0,70838.0,0.042343]
[1773521513478,0.20143793,70846.0,70838.0,0.042343]
[1773521513685,0.042336,70850.0,70838.0,0.042343]
[1773521513985,0.20144627,70849.0,70838.0,0.042343]
[1773521514296,0.20144627,70848.0,70838.0,0.042343]
[1773521514586,0.20144627,70847.0,70838.0,0.042343]
[1773521514786,0.20144627,70846.0,70838.0,0.042343]
[1773521515085,0.20144627,70845.0,70838.0,0.042343]
[1773521515284,0.042336,70850.0,70838.0,0.042343]
[1773521515485,0.20148485,70849.0,70838.0,0.042343]
[1773521515680,0.20148485,70848.0,70838.0,0.042343]
[1773521515887,0.20148485,70847.0,70838.0,0.042343]
[1773521516082,0.20148485,70846.0,70838.0,0.042343]
[1773521516285,0.20148485,70845.0,70838.0,0.042343]
[1773521516488,0.042336,70850.0,70838.0,0.042343]
[1773521516687,0.20148484,70849.0,70838.0,0.042343]
[1773521516888,0.20148484,70848.0,70838.0,0.042343]
[1773521517088,0.20148484,70847.0,70838.0,0.042343]
[1773521517387,0.20148484,70846.0,70838.0,0.042343]
[1773521517586,0.20148484,70845.0,70838.0,0.042343]
[1773521517887,0.042336,70850.0,70838.0,0.042343]
[1773521518087,0.20148481,70849.0,70838.0,0.042343]
[1773521518387,0.20148481,70848.0,70838.0,0.042343]
[1773521518572,0.20148481,70847.0,70838.0,0.042343]
[1773521518777,0.20148481,70846.0,70838.0,0.042343]
[1773521518982,0.20148481,70845.0,70838.0,0.042343]
[1773521519182,0.042336,70850.0,70838.0,0.042343]
[1773521519384,0.20148222,70849.0,70838.0,0.042343]
[1773521519588,0.20148222,70848.0,70838.0,0.042343]
[1773521519786,0.20148222,70847.0,70838.0,0.042343]
[1773521519987,0.20148222,70846.0,70838.0,0.042343]
[1773521520183,0.042336,70850.0,70838.0,0.042343]
[1773521520389,0.20147862,70849.0,70838.0,0.042343]
[1773521520688,0.20147862,70848.0,70838.0,0.042343]
[1773521520893,0.20147862,70847.0,70838.0,0.042343]
[1773521521084,0.20147862,70846.0,70838.0,0.042343]
[1773521521285,0.042336,70850.0,70838.0,0.042343]
[1773521521480,0.20147366,70849.0,70838.0,0.042343]
[1773521521680,0.20147366,70848.0,70838.0,0.042343]
[1773521521881,0.20147366,70847.0,70838.0,0.042343]
[1773521522087,0.20147366,70846.0,70838.0,0.042343]
[1773521522292,0.20147366,70845.0,70838.0,0.042343]
[1773521522488,0.20147366,70844.0,70838.0,0.042343]
[1773521522689,0.042336,70850.0,70838.0,0.042343]
[1773521522889,0.20147169,70849.0,70838.0,0.042343]
[1773521523190,0.20147169,70848.0,70838.0,0.042343]
[1773521523491,0.20147169,70847.0,70838.0,0.042343]
[1773521523790,0.20147169,70846.0,70838.0,0.042343]
[1773521524090,0.20147169,70845.0,70838.0,0.042343]
[1773521524391,0.20147169,70844.0,70838.0,0.042343]
[1773521524586,0.20147169,70843.0,70838.0,0.042343]
[1773521524778,0.042336,70850.0,70838.0,0.042343]
[1773521524975,0.20146879,70849.0,70838.0,0.042343]
[1773521525294,0.20146879,70848.0,70838.0,0.042343]
[1773521525591,0.20146879,70847.0,70838.0,0.042343]
[1773521525778,0.20146879,70846.0,70838.0,0.042343]
[1773521525981,0.20146879,70845.0,70838.0,0.042343]
[1773521526187,0.20146879,70844.0,70838.0,0.042343]
[1773521526390,0.20146879,70843.0,70838.0,0.042343]
[1773521526595,0.042336,70850.0,70838.0,0.042343]
[1773521526888,0.20146671,70849.0,70838.0,0.042343]
[1773521527090,0.20146671,70848.0,70838.0,0.042343]
[1773521527391,0.042336,70850.0,70838.0,0.042343]
[1773521527392,0.20146671,70847.0,70838.0,0.042343]
[1773521527583,0.20146671,70846.0,70838.0,0.042343]
[1773521527783,0.20146671,70845.0,70838.0,0.042343]
[1773521527982,0.20146671,70844.0,70838.0,0.042343]
[1773521528283,0.20146671,70843.0,70838.0,0.042343]
[1773521528480,0.042336,70850.0,70838.0,0.042343]
[1773521528775,0.20146517,70849.0,70838.0,0.042343]
[1773521529091,0.20146517,70848.0,70838.0,0.042343]
[1773521529392,0.20146517,70847.0,70838.0,0.042343]
[1773521529594,0.20146517,70846.0,70838.0,0.042343]
[1773521529889,0.20146517,70845.0,70838.0,0.042343]
[1773521530092,0.20146517,70844.0,70838.0,0.042343]
[1773521530292,0.20146517,70843.0,70838.0,0.042343]
[1773521530492,0.042336,70850.0,70838.0,0.042343]
[1773521530687,0.20146416,70849.0,70838.0,0.042343]
[1773521530888,0.20146416,70848.0,70838.0,0.042343]
[1773521531081,0.20146416,70847.0,70838.0,0.042343]
[1773521531281,0.20146416,70846.0,70838.0,0.042343]
[1773521531487,0.20146416,70845.0,70838.0,0.043903]
[1773521531789,0.042336,70850.0,70838.0,0.043903]
[1773521532090,0.20146386,70849.0,70838.0,0.043903]
[1773521532288,0.20146386,70848.0,70838.0,0.043903]
[1773521532490,0.20146386,70847.0,70838.0,0.043903]
[1773521532685,0.20146386,70846.0,70838.0,0.043903]
[1773521532884,0.20146386,70845.0,70838.0,0.043903]
[1773521533086,0.042336,70850.0,70838.0,0.043903]
[1773521533291,0.20146355,70849.0,70838.0,0.043903]
[1773521533486,0.20146355,70848.0,70838.0,0.043903]
[1773521533687,0.20146355,70847.0,70838.0,0.043903]
[1773521533992,0.20146355,70846.0,70838.0,0.043903]
[1773521534187,0.01550033,70862.0,70839.0,0.01558678]
[1773521534396,0.042333,70856.0,70841.0,0.01558678]
[1773521536088,0.042333,70855.0,70843.0,0.04234]
[1773521536288,0.00156,70860.0,70832.0,0.01124]
[1773521536289,0.042338,70848.0,70832.0,0.01124]
[1773521536489,0.01550033,70850.0,70836.0,0.042344]
[1773521536690,0.01550033,70850.0,70837.0,0.00156]
[1773521537994,0.042337,70849.0,70837.0,0.00156]
[1773521538894,0.042336,70851.0,70837.0,0.00156]
[1773521539194,0.042336,70851.0,70837.0,0.01714678]
[1773521539789,0.01550033,70859.0,70841.0,0.042341]
[1773521539988,0.00156,70858.0,70841.0,0.042341]
[1773521540193,0.042334,70855.0,70840.0,0.07359186]
[1773521540890,0.042334,70855.0,70840.0,0.08917864]
[1773521541992,0.042334,70854.0,70842.0,0.042341]
[1773521542190,0.01706033,70859.0,70840.0,0.08917864]
[1773521542191,0.00156,70859.0,70843.0,0.0177783]
[1773521542400,0.04233,70860.0,70849.0,0.07359186]
[1773521542697,0.04233,70860.0,70850.0,0.00156]
[1773521544199,0.042329,70863.0,70850.0,0.00156]
[1773521544590,0.042329,70862.0,70850.0,0.00156]
[1773521544792,0.042328,70864.0,70850.0,0.043896]
[1773521544990,0.042329,70863.0,70850.0,0.043896]
[1773521545189,0.042327,70865.0,70851.0,0.042335]
[1773521545397,0.042329,70862.0,70850.0,0.00156]
[1773521559808,0.01606934,70866.0,70853.0,0.042334]
[1773521560005,0.042328,70865.0,70853.0,0.042334]
[1773521563506,0.042328,70864.0,70851.0,0.042335]
[1773521563707,0.042328,70864.0,70850.0,0.13367792]
[1773521563902,0.042329,70863.0,70850.0,0.11745962]
[1773521564320,0.042329,70863.0,70850.0,0.043896]
[1773521565710,0.01606934,70866.0,70850.0,0.00156]
[1773521565920,0.01606934,70867.0,70848.0,0.042337]
[1773521566216,0.01606934,70867.0,70849.0,0.00156]
[1773521566418,0.01606934,70867.0,70848.0,0.042337]
[1773521566622,0.01606934,70867.0,70849.0,0.00156]
[1773521567023,0.042329,70862.0,70849.0,0.00156]
[1773521567321,0.042329,70862.0,70849.0,0.043896]
[1773521569622,0.02663071,70871.0,70850.0,0.08822788]
[1773521569921,0.00156,70870.0,70850.0,0.08822788]
[1773521570323,0.01739387,70870.0,70850.0,0.08822788]
[1773521570513,0.01583387,70870.0,70850.0,0.08822788]
[1773521570713,0.01739387,70870.0,70850.0,0.08822788]
[1773521570920,0.01739387,70870.0,70850.0,0.07356362]
[1773521571117,0.042326,70867.0,70850.0,0.07356362]
[1773521572014,0.042326,70867.0,70853.0,0.042334]
[1773521575427,0.042327,70866.0,70853.0,0.042334]
[1773521580536,0.042327,70865.0,70853.0,0.042334]
[1773521580726,0.01739387,70870.0,70853.0,0.042334]
[1773521580940,0.00156,70870.0,70851.0,0.042335]
[1773521581234,0.01475185,70869.0,70851.0,0.042335]
[1773521581933,0.042328,70864.0,70851.0,0.042335]
[1773521582119,0.042328,70864.0,70852.0,0.00156]
[1773521584636,0.042328,70864.0,70852.0,0.043895]
[1773521594552,0.01123,70872.0,70862.0,0.042329]
[1773521594852,0.01123,70872.0,70863.0,0.00156]
[1773521596054,0.042322,70874.0,70863.0,0.00156]
[1773521597854,0.042323,70873.0,70863.0,0.00156]
[1773521598053,0.01475185,70879.0,70863.0,0.00156]
[1773521598958,0.042324,70871.0,70863.0,0.00156]
[1773521599259,0.042324,70871.0,70862.0,0.00156]
[1773521599751,0.042324,70871.0,70859.0,0.04233]